fUSD/lending_fUSD_20250109
["ID","MTS","AMOUNT","RATE_DAILY","PERIOD"]
[348276705,1736430660265,-500.0,0.0001082,2]
[348276706,1736430660274,-1036.84,0.0001082,2]
[348276707,1736430660284,-500.0,0.0001082,2]
[348276708,1736430660294,-500.0,0.0001082,2]
[348276709,1736430660303,-500.0,0.0001082,2]
[348276710,1736430660313,-500.0,0.0001082,2]
[348276711,1736430660323,-500.0,0.0001082,2]
[348276712,1736430660332,-500.0,0.0001082,2]
[348276713,1736430660343,-500.0,0.0001082,2]
[348276714,1736430660354,-500.0,0.0001082,2]
[348276715,1736430660363,-500.0,0.0001082,2]
[348276716,1736430660372,-500.0,0.0001082,2]
[348276717,1736430660382,-500.0,0.0001082,2]
[348276718,1736430660392,-500.0,0.0001082,2]
[348276719,1736430660402,-1387.53,0.0001082,2]
[348276720,1736430660412,-500.0,0.0001082,2]
[348276721,1736430660422,-500.0,0.0001082,2]
[348276722,1736430660431,-500.0,0.0001082,2]
[348276723,1736430660442,-500.0,0.0001082,2]
[348276724,1736430660452,-611.37,0.0001082,2]
[348276725,1736430660462,-500.0,0.0001082,2]
[348276726,1736430660472,-500.0,0.0001082,2]
[348276727,1736430660482,-169.9,0.0001082,2]
[348276728,1736430660495,-500.0,0.0001082,2]
[348276729,1736430660504,-159.84,0.0001082,2]
[348276730,1736430660514,-500.0,0.0001082,2]
[348276731,1736430660524,-224.86,0.0001082,2]
[348276732,1736430660534,-3848.442669,0.0001082,2]
[348276733,1736430660543,-500.0,0.0001082,2]
[348276734,1736430660552,-500.0,0.0001082,2]
[348276735,1736430660562,-4736.456601,0.0001082,2]
[348276736,1736430660571,-653.12,0.0001082,2]
[348276737,1736430660581,-360.07,0.0001082,2]
[348276738,1736430660591,-158.604866,0.0001082,2]
[348276739,1736430660600,-500.0,0.0001082,2]
[348276740,1736430660610,-615.69,0.0001082,2]
[348276741,1736430660619,-500.0,0.0001082,2]
[348276742,1736430660629,-500.0,0.0001082,2]
[348276743,1736430660639,-500.0,0.0001082,2]
[348276744,1736430660649,-500.0,0.0001082,2]
[348276745,1736430660659,-500.0,0.0001082,2]
[348276746,1736430660668,-500.0,0.0001082,2]
[348276747,1736430660678,-500.0,0.0001082,2]
[348276748,1736430660688,-500.0,0.0001082,2]
[348276749,1736430660698,-500.0,0.0001082,2]
[348276750,1736430660708,-500.0,0.0001082,2]
[348276751,1736430660718,-500.0,0.0001082,2]
[348276752,1736430660727,-450.92,0.0001082,2]
[348276753,1736430660737,-500.0,0.0001082,2]
[348276754,1736430660747,-500.0,0.0001082,2]
[348276755,1736430660757,-500.0,0.0001082,2]
[348276756,1736430660767,-500.0,0.0001082,2]
[348276757,1736430660777,-500.0,0.0001082,2]
[348276758,1736430660787,-500.0,0.0001082,2]
[348276759,1736430660796,-500.0,0.0001082,2]
[348276760,1736430660806,-1661.78,0.0001082,2]
[348276761,1736430660815,-500.0,0.0001082,2]
[348276762,1736430660825,-500.0,0.0001082,2]
[348276763,1736430660835,-507.3711613,0.0001082,2]
[348276764,1736430660846,-500.0,0.0001082,2]
[348276765,1736430660855,-500.0,0.0001082,2]
[348276766,1736430660865,-500.0,0.0001082,2]
[348276767,1736430660875,-500.0,0.0001082,2]
[348276768,1736430660884,-1647.75,0.0001082,2]
[348276769,1736430660894,-500.0,0.0001082,2]
[348276770,1736430660903,-500.0,0.0001082,2]
[348276771,1736430660913,-500.0,0.0001082,2]
[348276772,1736430660923,-500.0,0.0001082,2]
[348276773,1736430660933,-500.0,0.0001082,2]
[348276774,1736430660943,-500.0,0.0001082,2]
[348276775,1736430660952,-1945.08,0.0001082,2]
[348276776,1736430660962,-500.0,0.0001082,2]
[348276777,1736430660971,-500.0,0.0001082,2]
[348276778,1736430660981,-500.0,0.0001082,2]
[348276779,1736430660991,-500.0,0.0001082,2]
[348276780,1736430661000,-500.0,0.0001082,2]
[348276781,1736430661010,-1625.05,0.0001082,2]
[348276782,1736430661020,-500.0,0.0001082,2]
[348276783,1736430661029,-417.5,0.0001082,2]
[348276784,1736430661039,-500.0,0.0001082,2]
[348276785,1736430661049,-500.0,0.0001082,2]
[348276786,1736430661059,-500.0,0.0001082,2]
[348276787,1736430661073,-536.26,0.0001082,2]
[348276788,1736430661084,-500.0,0.0001082,2]
[348276789,1736430661094,-500.0,0.0001082,2]
[348276790,1736430661104,-500.0,0.0001082,2]
[348276791,1736430661119,-500.0,0.0001082,2]
[348276792,1736430661129,-500.0,0.0001082,2]
[348276793,1736430661140,-500.0,0.0001082,2]
[348276794,1736430661151,-1043.61,0.0001082,2]
[348276795,1736430661162,-500.0,0.0001082,2]
[348276796,1736430661171,-500.0,0.0001082,2]
[348276797,1736430661181,-500.0,0.0001082,2]
[348276798,1736430661191,-500.0,0.0001082,2]
[348276799,1736430661201,-500.0,0.0001082,2]
[348276800,1736430661212,-500.0,0.0001082,2]
[348276801,1736430661222,-500.0,0.0001082,2]
[348276802,1736430661233,-500.0,0.0001082,2]
[348276803,1736430661250,-500.0,0.0001082,2]
[348276804,1736430661260,-500.0,0.0001082,2]
[348276805,1736430661270,-2040.09,0.0001082,2]
[348276806,1736430661280,-500.0,0.0001082,2]
[348276807,1736430661290,-500.0,0.0001082,2]
[348276808,1736430661299,-500.0,0.0001082,2]
[348276809,1736430661309,-528.62,0.0001082,2]
[348276810,1736430661319,-500.0,0.0001082,2]
[348276811,1736430661329,-500.0,0.0001082,2]
[348276812,1736430661338,-500.0,0.0001082,2]
[348276813,1736430661348,-500.0,0.0001082,2]
[348276814,1736430661358,-500.0,0.0001082,2]
[348276815,1736430661367,-500.0,0.0001082,2]
[348276816,1736430661377,-856.5,0.0001082,2]
[348276817,1736430661387,-500.0,0.0001082,2]
[348276818,1736430661397,-500.0,0.0001082,2]
[348276819,1736430661406,-500.0,0.0001082,2]
[348276820,1736430661416,-502.78828552,0.0001082,2]
[348276821,1736430661426,-500.0,0.0001082,2]
[348276822,1736430661436,-500.0,0.0001082,2]
[348276823,1736430661446,-500.0,0.0001082,2]
[348276824,1736430661456,-500.0,0.0001082,2]
[348276825,1736430661465,-500.0,0.0001082,2]
[348276826,1736430661476,-861.95,0.0001082,2]
[348276827,1736430661489,-500.0,0.0001082,2]
[348276828,1736430661500,-500.0,0.0001082,2]
[348276829,1736430661509,-500.0,0.0001082,2]
[348276830,1736430661518,-500.0,0.0001082,2]
[348276831,1736430661528,-500.0,0.0001082,2]
[348276832,1736430661538,-500.0,0.0001082,2]
[348276833,1736430661548,-500.0,0.0001082,2]
[348276834,1736430661558,-500.0,0.0001082,2]
[348276835,1736430661568,-546.82,0.0001082,2]
[348276836,1736430661578,-500.0,0.0001082,2]
[348276837,1736430661587,-1078.14,0.0001082,2]
[348276838,1736430661597,-500.0,0.0001082,2]
[348276839,1736430661607,-500.0,0.0001082,2]
[348276840,1736430661617,-500.0,0.0001082,2]
[348276841,1736430661626,-500.0,0.00010821,2]
[348276842,1736430661635,-500.0,0.00010821,2]
[348276843,1736430661645,-615.65,0.00010821,2]
[348276844,1736430661654,-500.0,0.00010821,2]
[348276845,1736430661664,-500.0,0.00010821,2]
[348276846,1736430661673,-500.0,0.00010821,2]
[348276847,1736430661682,-164.13,0.00010821,2]
[348276848,1736430661692,-500.0,0.00010821,2]
[348276849,1736430661701,-500.0,0.00010821,2]
[348276850,1736430661711,-234.48216282,0.00010821,2]
[348276851,1736430661720,-500.0,0.00010821,2]
[348276852,1736430661730,-500.0,0.00010821,2]
[348276853,1736430661743,-500.0,0.00010821,2]
[348276854,1736430661752,-500.0,0.00010821,2]
[348276855,1736430661762,-500.0,0.00010821,2]
[348276856,1736430661771,-500.0,0.00010821,2]
[348276857,1736430661780,-500.0,0.00010821,2]
[348276858,1736430661790,-371.97,0.00010821,2]
[348276859,1736430661800,-398.3,0.00010821,2]
[348276860,1736430661809,-500.0,0.00010821,2]
[348276861,1736430661818,-641.51,0.00010821,2]
[348276862,1736430661828,-500.0,0.00010821,2]
[348276863,1736430661837,-510.35,0.00010821,2]
[348276864,1736430661848,-500.0,0.00010821,2]
[348276865,1736430661857,-500.0,0.00010821,2]
[348276866,1736430661867,-500.0,0.00010821,2]
[348276867,1736430661877,-156.46,0.00010821,2]
[348276868,1736430661886,-500.0,0.00010821,2]
[348276869,1736430661896,-500.0,0.00010821,2]
[348276870,1736430661905,-500.0,0.00010821,2]
[348276871,1736430661915,-500.0,0.00010821,2]
[348276872,1736430661924,-500.0,0.00010821,2]
[348276873,1736430661933,-500.0,0.00010821,2]
[348276874,1736430661943,-500.0,0.00010821,2]
[348276875,1736430661953,-500.0,0.00010821,2]
[348276876,1736430661961,-500.0,0.00010821,2]
[348276877,1736430661971,-500.0,0.00010821,2]
[348276878,1736430661980,-500.0,0.00010821,2]
[348276879,1736430661994,-500.0,0.00010821,2]
[348276880,1736430662005,-248.21,0.00010821,2]
[348276881,1736430662015,-500.0,0.00010821,2]
[348276882,1736430662024,-500.0,0.00010821,2]
[348276883,1736430662033,-373.67188855,0.00010821,2]
[348276884,1736430662043,-500.0,0.00010821,2]
[348276885,1736430662052,-506.05401608,0.00010821,2]
[348276886,1736430662063,-197.23774062,0.00010821,2]
[348276887,1736430662076,-489.98,0.00010821,2]
[348276888,1736430662086,-575.43,0.00010821,2]
[348276889,1736430662096,-232.34832248,0.00010821,2]
[348276890,1736430662107,-642.37,0.00010821,2]
[348276891,1736430662117,-548.44,0.00010821,2]
[348276892,1736430662128,-500.0,0.00010821,2]
[348276893,1736430662138,-500.0,0.00010821,2]
[348276894,1736430662148,-510.69176961,0.00010821,2]
[348276895,1736430662159,-500.0,0.00010821,2]
[348276896,1736430662169,-500.0,0.00010821,2]
[348276897,1736430662178,-154.39,0.00010821,2]
[348276898,1736430662187,-500.0,0.00010821,2]
[348276899,1736430662197,-500.0,0.00010821,2]
[348276900,1736430662206,-500.0,0.00010821,2]
[348276901,1736430662215,-500.0,0.00010821,2]
[348276902,1736430662225,-500.0,0.00010821,2]
[348276903,1736430662235,-500.0,0.00010821,2]
[348276904,1736430662248,-528.054592,0.00010821,2]
[348276905,1736430662259,-500.0,0.00010821,2]
[348276906,1736430662269,-500.0,0.00010821,2]
[348276907,1736430662279,-500.0,0.00010821,2]
[348276908,1736430662289,-500.0,0.00010821,2]
[348276909,1736430662299,-500.0,0.00010821,2]
[348276910,1736430662308,-500.0,0.00010836,2]
[348276911,1736430662318,-892.4,0.00010861,2]
[348276912,1736430662327,-713.58,0.00010899,2]
[348276913,1736430662337,-150.0,0.00010959,2]
[348276914,1736430662347,-500.0,0.00010986,2]
[348276915,1736430662356,-3012.7048965,0.00011,2]
[348276916,1736430662366,-203.0,0.00011,2]
[348276917,1736430662375,-298.0,0.00011,2]
[348276918,1736430662385,-500.0,0.00011,2]
[348276919,1736430662395,-550.0,0.00011,2]
[348276920,1736430662404,-9581.77430743,0.0001105,2]
[348276921,1736430662413,-500.0,0.00011091,2]
[348276922,1736430662423,-830.46,0.00011091,2]
[348276923,1736430662434,-585.6,0.00011091,2]
[348276924,1736430662443,-608.97,0.00011091,2]
[348276925,1736430662453,-1143.48,0.00011091,2]
[348276926,1736430662462,-656.62,0.00011091,2]
[348276927,1736430662472,-500.0,0.00011091,2]
[348276928,1736430662482,-679.93,0.00011091,2]
[348276929,1736430662497,-500.0,0.00011091,2]
[348276930,1736430662508,-546.23,0.00011091,2]
[348276931,1736430662517,-500.0,0.00011091,2]
[348276932,1736430662526,-654.73,0.00011091,2]
[348276933,1736430662535,-572.86,0.00011091,2]
[348276934,1736430662545,-3338.9,0.00011091,2]
[348276935,1736430662555,-954.74,0.00011091,2]
[348276936,1736430662565,-1334.52,0.00011091,2]
[348276937,1736430662574,-638.42,0.00011091,2]
[348276938,1736430662584,-500.0,0.00011091,2]
[348276939,1736430662594,-624.19,0.00011091,2]
[348276940,1736430662604,-500.0,0.00011091,2]
[348276941,1736430662614,-500.0,0.00011092,2]
[348276942,1736430662624,-1021.91,0.00011092,2]
[348276943,1736430662633,-500.0,0.00011092,2]
[348276944,1736430662643,-580.18,0.00011092,2]
[348276945,1736430662653,-500.0,0.00011092,2]
[348276946,1736430662662,-500.0,0.00011092,2]
[348276947,1736430662798,-500.0,0.00011092,2]
[348276948,1736430662808,-500.0,0.00011092,2]
[348276949,1736430662817,-500.0,0.00011092,2]
[348276950,1736430662827,-500.0,0.00011092,2]
[348276951,1736430662836,-534.45,0.00011092,2]
[348276952,1736430662846,-500.0,0.00011092,2]
[348276953,1736430662855,-500.0,0.00011092,2]
[348276954,1736430662864,-500.0,0.00011092,2]
[348276955,1736430662874,-185.2,0.00011092,2]
[348276956,1736430662883,-500.0,0.00011093,2]
[348276957,1736430662893,-500.0,0.00011093,2]
[348276958,1736430662902,-500.0,0.00011093,2]
[348276959,1736430662911,-216.18,0.00011093,2]
[348276960,1736430662921,-251.47,0.00011093,2]
[348276961,1736430662931,-307.6,0.00011093,2]
[348276962,1736430662940,-500.0,0.00011093,2]
[348276963,1736430662950,-1224.14,0.00011093,2]
[348276964,1736430662959,-198.52,0.00011093,2]
[348276965,1736430662969,-2077.53,0.00011093,2]
[348276966,1736430662978,-231.77,0.00011093,2]
[348276967,1736430662988,-1128.22,0.00011093,2]
[348276968,1736430663002,-199.85,0.00011093,2]
[348276969,1736430663012,-500.0,0.00011093,2]
[348276970,1736430663022,-500.0,0.00011093,2]
[348276971,1736430663032,-1094.6,0.00011093,2]
[348276972,1736430663042,-500.0,0.00011093,2]
[348276973,1736430663051,-500.0,0.00011093,2]
[348276974,1736430663063,-500.0,0.00011093,2]
[348276975,1736430663077,-420.75,0.00011093,2]
[348276976,1736430663087,-748.35,0.00011093,2]
[348276977,1736430663097,-500.0,0.00011093,2]
[348276978,1736430663110,-500.0,0.00011093,2]
[348276979,1736430663121,-500.0,0.00011094,2]
[348276980,1736430663131,-500.0,0.00011094,2]
[348276981,1736430663140,-500.0,0.00011094,2]
[348276982,1736430663152,-1036.84,0.00011094,2]
[348276983,1736430663161,-168.8,0.00011094,2]
[348276984,1736430663170,-500.0,0.00011094,2]
[348276985,1736430663178,-214.45,0.00011094,2]
[348276986,1736430663186,-500.0,0.00011094,2]
[348276987,1736430663195,-500.0,0.00011094,2]
[348276988,1736430663205,-500.0,0.00011094,2]
[348276989,1736430663215,-479.2,0.00011094,2]
[348276990,1736430663224,-500.0,0.00011094,2]
[348276991,1736430663234,-500.0,0.00011094,2]
[348276992,1736430663248,-500.0,0.00011094,2]
[348276993,1736430663258,-500.0,0.00011094,2]
[348276994,1736430663268,-500.0,0.00011094,2]
[348276995,1736430663278,-1387.53,0.00011094,2]
[348276996,1736430663288,-454.84,0.00011094,2]
[348276997,1736430663298,-292.07,0.00011094,2]
[348276998,1736430663307,-500.0,0.00011094,2]
[348276999,1736430663317,-500.0,0.00011094,2]
[348277000,1736430663327,-420.37,0.00011094,2]
[348277001,1736430663337,-500.0,0.00011094,2]
[348277002,1736430663346,-566.38,0.00011094,2]
[348277003,1736430663356,-500.0,0.00011094,2]
[348277004,1736430663366,-3848.442669,0.00011094,2]
[348277005,1736430663375,-432.95,0.00011094,2]
[348277006,1736430663385,-500.0,0.00011094,2]
[348277007,1736430663394,-4736.456601,0.00011094,2]
[348277008,1736430663405,-653.12,0.00011094,2]
[348277009,1736430663415,-500.0,0.00011094,2]
[348277010,1736430663425,-500.0,0.00011094,2]
[348277011,1736430663435,-500.0,0.00011094,2]
[348277012,1736430663445,-500.0,0.00011094,2]
[348277013,1736430663455,-500.0,0.00011094,2]
[348277014,1736430663464,-500.0,0.00011094,2]
[348277015,1736430663474,-500.0,0.00011094,2]
[348277016,1736430663484,-500.0,0.00011094,2]
[348277017,1736430663501,-500.0,0.00011094,2]
[348277018,1736430663511,-500.0,0.00011094,2]
[348277019,1736430663521,-500.0,0.00011094,2]
[348277020,1736430663531,-500.0,0.00011094,2]
[348277021,1736430663541,-500.0,0.00011094,2]
[348277022,1736430663552,-500.0,0.00011094,2]
[348277023,1736430663562,-500.0,0.00011094,2]
[348277024,1736430663572,-500.0,0.00011094,2]
[348277025,1736430663583,-500.0,0.00011094,2]
[348277026,1736430663593,-500.0,0.00011094,2]
[348277027,1736430663604,-1661.78,0.00011094,2]
[348277028,1736430663614,-500.0,0.00011094,2]
[348277029,1736430663623,-500.0,0.00011094,2]
[348277030,1736430663635,-500.0,0.00011094,2]
[348277031,1736430663645,-500.0,0.00011094,2]
[348277032,1736430663655,-500.0,0.00011094,2]
[348277033,1736430663665,-500.0,0.00011094,2]
[348277034,1736430663675,-1647.75,0.00011094,2]
[348277035,1736430663685,-500.0,0.00011094,2]
[348277036,1736430663695,-500.0,0.00011094,2]
[348277037,1736430663704,-500.0,0.00011094,2]
[348277038,1736430663715,-500.0,0.00011094,2]
[348277039,1736430663725,-500.0,0.00011094,2]
[348277040,1736430663735,-1945.08,0.00011094,2]
[348277041,1736430663751,-500.0,0.00011094,2]
[348277042,1736430663761,-500.0,0.00011094,2]
[348277043,1736430663771,-500.0,0.00011094,2]
[348277044,1736430663780,-500.0,0.00011094,2]
[348277045,1736430663790,-500.0,0.00011094,2]
[348277046,1736430663800,-1625.05,0.00011094,2]
[348277047,1736430663810,-500.0,0.00011094,2]
[348277048,1736430663820,-500.0,0.00011094,2]
[348277049,1736430663831,-500.0,0.00011094,2]
[348277050,1736430663840,-500.0,0.00011094,2]
[348277051,1736430663850,-536.26,0.00011094,2]
[348277052,1736430663859,-500.0,0.00011094,2]
[348277053,1736430663869,-500.0,0.00011094,2]
[348277054,1736430663879,-500.0,0.00011094,2]
[348277055,1736430663889,-500.0,0.00011094,2]
[348277056,1736430663899,-500.0,0.00011094,2]
[348277057,1736430663908,-500.0,0.00011094,2]
[348277058,1736430663918,-1043.61,0.00011094,2]
[348277059,1736430663928,-500.0,0.00011094,2]
[348277060,1736430663937,-500.0,0.00011094,2]
[348277061,1736430663948,-500.0,0.00011094,2]
[348277062,1736430663957,-560.75,0.00011094,2]
[348277063,1736430663967,-500.0,0.00011094,2]
[348277064,1736430663977,-500.0,0.00011094,2]
[348277065,1736430663986,-500.0,0.00011094,2]
[348277066,1736430664002,-500.0,0.00011094,2]
[348277067,1736430664021,-500.0,0.00011094,2]
[348277068,1736430664035,-500.0,0.00011094,2]
[348277069,1736430664052,-2040.09,0.00011094,2]
[348277070,1736430664070,-500.0,0.00011094,2]
[348277071,1736430664087,-502.52209572,0.00011094,2]
[348277072,1736430664104,-500.0,0.00011094,2]
[348277073,1736430664117,-528.62,0.00011094,2]
[348277074,1736430664133,-500.0,0.00011094,2]
[348277075,1736430664151,-500.0,0.00011094,2]
[348277076,1736430664168,-500.0,0.00011094,2]
[348277077,1736430664186,-500.0,0.00011094,2]
[348277078,1736430664201,-500.0,0.00011094,2]
[348277079,1736430664219,-500.0,0.00011094,2]
[348277080,1736430664236,-856.5,0.00011094,2]
[348277081,1736430664255,-500.0,0.00011094,2]
[348277082,1736430664272,-500.0,0.00011094,2]
[348277083,1736430664289,-500.0,0.00011094,2]
[348277084,1736430664303,-500.0,0.00011094,2]
[348277085,1736430664317,-500.0,0.00011094,2]
[348277086,1736430664333,-500.0,0.00011094,2]
[348277087,1736430664348,-500.0,0.00011094,2]
[348277088,1736430664361,-500.0,0.00011094,2]
[348277089,1736430664377,-500.0,0.00011094,2]
[348277090,1736430664392,-861.95,0.00011094,2]
[348277091,1736430664405,-500.0,0.00011094,2]
[348277092,1736430664419,-500.0,0.00011094,2]
[348277093,1736430664434,-500.0,0.00011094,2]
[348277094,1736430664447,-500.0,0.00011094,2]
[348277095,1736430664461,-500.0,0.00011094,2]
[348277096,1736430664474,-500.0,0.00011094,2]
[348277097,1736430664489,-546.82,0.00011094,2]
[348277098,1736430664506,-500.0,0.00011094,2]
[348277099,1736430664519,-1078.14,0.00011094,2]
[348277100,1736430664533,-500.0,0.00011094,2]
[348277101,1736430664547,-500.0,0.00011094,2]
[348277102,1736430664561,-500.0,0.00011094,2]
[348277103,1736430664575,-228.77,0.00011095,2]
[348277104,1736430664588,-192.24,0.00011095,2]
[348277105,1736430664603,-500.0,0.00011095,2]
[348277106,1736430664616,-500.0,0.00011095,2]
[348277107,1736430664629,-500.0,0.00011095,2]
[348277108,1736430664642,-500.0,0.00011095,2]
[348277109,1736430664654,-552.91,0.00011095,2]
[348277110,1736430664668,-630.19,0.00011095,2]
[348277111,1736430664681,-582.22,0.00011095,2]
[348277112,1736430664694,-248.85,0.00011095,2]
[348277113,1736430664708,-253.07,0.00011095,2]
[348277114,1736430664721,-500.0,0.00011095,2]
[348277115,1736430664735,-500.0,0.00011095,2]
[348277116,1736430664750,-500.0,0.00011095,2]
[348277117,1736430664763,-441.52,0.00011095,2]
[348277118,1736430664777,-500.0,0.00011095,2]
[348277119,1736430664790,-510.35,0.00011095,2]
[348277120,1736430664803,-612.56,0.00011095,2]
[348277121,1736430664817,-500.0,0.00011095,2]
[348277122,1736430664830,-500.0,0.00011095,2]
[348277123,1736430664843,-290.93,0.00011095,2]
[348277124,1736430664856,-387.52,0.00011095,2]
[348277125,1736430664868,-371.4,0.00011095,2]
[348277126,1736430664881,-329.49,0.00011095,2]
[348277127,1736430664894,-157.93765194,0.00011095,2]
[348277128,1736430664906,-500.0,0.00011095,2]
[348277129,1736430664919,-500.0,0.00011095,2]
[348277130,1736430664932,-278.81,0.00011095,2]
[348277131,1736430664945,-500.0,0.00011095,2]
[348277132,1736430664957,-583.76,0.00011095,2]
[348277133,1736430664970,-500.0,0.00011095,2]
[348277134,1736430664983,-500.0,0.00011095,2]
[348277135,1736430664999,-228.5,0.00011095,2]
[348277136,1736430665012,-281.43463077,0.00011095,2]
[348277137,1736430665025,-648.68,0.00011095,2]
[348277138,1736430665039,-500.0,0.00011095,2]
[348277139,1736430665052,-259.4,0.00011095,2]
[348277140,1736430665069,-150.0,0.00011164,2]
[348277141,1736430665082,-203.0,0.000112,2]
[348277142,1736430665095,-298.0,0.000112,2]
[348277143,1736430665109,-150.0,0.00011202,2]
[348277144,1736430665124,-150.0,0.00011209,2]
[348277145,1736430665139,-150.0,0.00011227,2]
[348277146,1736430665154,-150.0,0.00011233,2]
[348277147,1736430665167,-150.0,0.00011251,2]
[348277148,1736430665178,-500.0,0.0001128,2]
[348277149,1736430665188,-500.0,0.0001128,2]
[348277150,1736430665198,-500.0,0.0001128,2]
[348277151,1736430665208,-500.0,0.0001128,2]
[348277152,1736430665218,-500.0,0.0001128,2]
[348277153,1736430665228,-500.0,0.0001128,2]
[348277154,1736430665238,-500.0,0.0001128,2]
[348277155,1736430665251,-500.0,0.0001128,2]
[348277156,1736430665261,-500.0,0.0001128,2]
[348277157,1736430665271,-500.81682399,0.0001128,2]
[348277158,1736430665280,-501.4789636,0.0001128,2]
[348277159,1736430665290,-500.0,0.0001128,2]
[348277160,1736430665299,-500.0,0.0001128,2]
[348277161,1736430665308,-500.0,0.0001128,2]
[348277162,1736430665318,-500.0,0.0001128,2]
[348277163,1736430665328,-599.39991311,0.0001128,2]
[348277164,1736430665338,-553.19473759,0.0001128,2]
[348277165,1736430665348,-500.0,0.0001128,2]
[348277166,1736430665358,-501.35544198,0.0001128,2]
[348277167,1736430665368,-500.0,0.0001128,2]
[348277168,1736430665378,-500.0,0.0001128,2]
[348277169,1736430665389,-500.0,0.0001128,2]
[348277170,1736430665400,-500.0,0.0001128,2]
[348277171,1736430665410,-500.0,0.0001128,2]
[348277172,1736430665420,-500.0,0.0001128,2]
[348277173,1736430665431,-500.0,0.0001128,2]
[348277174,1736430665441,-500.0,0.0001128,2]
[348277175,1736430665451,-500.0,0.0001128,2]
[348277176,1736430665460,-1180.22,0.0001128,2]
[348277177,1736430665470,-150.0,0.00011308,2]
[348277178,1736430665479,-150.0,0.0001131,2]
[348277179,1736430665489,-150.0,0.00011326,2]
[348277180,1736430665503,-437.83,0.00011342,2]
[348277181,1736430665514,-772.01,0.00011342,2]
[348277182,1736430665524,-437.83,0.00011342,2]
[348277183,1736430665836,-772.01,0.00011342,2]
[348277184,1736430665855,-437.83,0.00011342,2]
[348277185,1736430665866,-437.83,0.00011342,2]
[348277186,1736430665876,-772.01,0.00011342,2]
[348277187,1736430665886,-437.83,0.00011342,2]
[348277188,1736430665896,-772.01,0.00011342,2]
[348277189,1736430665906,-772.01,0.00011342,2]
[348277190,1736430665915,-437.83,0.00011342,2]
[348277191,1736430665925,-772.01,0.00011342,2]
[348277192,1736430665935,-437.83,0.00011342,2]
[348277193,1736430665944,-437.83,0.00011342,2]
[348277194,1736430665954,-772.01,0.00011342,2]
[348277195,1736430665964,-772.01,0.00011342,2]
[348277196,1736430665973,-437.83,0.00011342,2]
[348277197,1736430665983,-500.0,0.00011365,2]
[348277198,1736430665992,-830.46,0.00011365,2]
[348277199,1736430666005,-585.6,0.00011365,2]
[348277200,1736430666015,-608.97,0.00011365,2]
[348277201,1736430666024,-1143.48,0.00011365,2]
[348277202,1736430666034,-656.62,0.00011365,2]
[348277203,1736430666044,-679.93,0.00011365,2]
[348277204,1736430666053,-500.0,0.00011365,2]